fUST/lending_fUST_20260111
["ID","MTS","AMOUNT","RATE_DAILY","PERIOD"]
[401312931,1768127447566,-1252.1743325,0.0003131,2]
[401312932,1768127447576,-210.77216324,0.00031482,10]
[401312933,1768127447588,-468.6,0.00031672,5]
[401312934,1768127447597,-151.0,0.00031997,14]
[401312935,1768127447607,-578944.75907056,0.00031998,2]
[401312936,1768127447621,-151.0,0.00031998,31]
[401312937,1768127447631,-151.0,0.00031998,31]
[401312938,1768127447642,-181.667878,0.00031998,31]
[401312939,1768127447654,-1355.369352,0.00031998,31]
[401312940,1768127447664,-1355.369352,0.00031998,31]
[401312941,1768127447673,-1355.369352,0.00031998,31]
[401312942,1768127447683,-1355.369352,0.00031998,31]
[401312943,1768127447692,-151.0,0.00031998,7]
[401312944,1768127447702,-151.0,0.00031998,7]
[401312945,1768127447711,-151.0,0.00031998,31]
[401312946,1768127447720,-151.0,0.00031998,31]
[401312947,1768127447730,-151.0,0.00031998,31]
[401312948,1768127447739,-151.0,0.00031998,31]
[401312949,1768127447748,-239.620179,0.00031998,31]
[401312950,1768127447757,-151.0,0.00031998,31]
[401312951,1768127447766,-728.329358,0.00031998,31]
[401312952,1768127447774,-728.329358,0.00031998,31]
[401312953,1768127447783,-728.329358,0.00031998,31]
[401312954,1768127447792,-728.329358,0.00031998,31]
[401312955,1768127447802,-151.0,0.00031998,31]
[401312956,1768127447810,-151.0,0.00031998,31]
[401312957,1768127447820,-151.0,0.00031998,2]
[401312958,1768127447829,-221.073797,0.00031998,31]
[401312959,1768127447838,-151.0,0.00031998,31]
[401312960,1768127447847,-1112.0,0.00031999,2]
[401312961,1768127447857,-870.24597621,0.00032,2]
[401312962,1768127447866,-162.09527137,0.00032,120]
[401312963,1768127447875,-5000.0,0.0003237,2]
[401312964,1768127447884,-5142.43646252,0.00032482,30]
[401312965,1768127447894,-168.0,0.00032607,2]
[401312966,1768127447904,-868.0,0.00032661,2]
[401312967,1768127447914,-168.0,0.00032703,7]
[401312968,1768127447923,-999.0,0.00032876,120]
[401312969,1768127447933,-524.39,0.00032877,10]
[401312970,1768127447942,-300.0,0.00032877,5]
[401312971,1768127447951,-450.0,0.00032877,5]
[401312972,1768127447961,-151.0,0.00032917,2]
[401312973,1768127447970,-151.0,0.00032917,2]
[401312974,1768127447979,-151.0,0.00032917,2]
[401312975,1768127447988,-151.0,0.00032917,2]
[401312976,1768127447998,-151.0,0.00032917,2]
[401312977,1768127448012,-151.0,0.00032917,2]
[401312978,1768127448027,-151.0,0.00032917,2]
[401312979,1768127448041,-151.0,0.00032917,2]
[401312980,1768127448052,-151.0,0.00032917,2]
[401312981,1768127448066,-151.0,0.00032917,2]
[401312982,1768127448079,-151.0,0.00032917,2]
[401312983,1768127448092,-151.0,0.00032917,2]
[401312984,1768127448105,-151.0,0.00032917,2]
[401312985,1768127448117,-151.0,0.00032917,2]
[401312986,1768127448132,-151.0,0.00032917,2]
[401312987,1768127448146,-151.0,0.00032917,2]
[401312988,1768127448159,-151.0,0.00032917,2]
[401312989,1768127448170,-151.0,0.00032917,2]
[401312990,1768127448183,-151.0,0.00032917,2]
[401312991,1768127448195,-151.0,0.00032917,2]
[401312992,1768127448209,-151.0,0.00032917,2]
[401312993,1768127448226,-151.0,0.00032917,2]
[401312994,1768127448239,-151.0,0.00032917,2]
[401312995,1768127448249,-151.0,0.00032917,2]
[401312996,1768127448262,-151.0,0.00032917,2]
[401312997,1768127448274,-151.0,0.00032917,2]
[401312998,1768127448288,-151.0,0.00032917,2]
[401312999,1768127448301,-151.0,0.00032917,2]
[401313000,1768127448314,-151.0,0.00032917,2]
[401313001,1768127448328,-151.0,0.00032917,2]
[401313002,1768127448342,-151.0,0.00032917,2]
[401313003,1768127448355,-151.0,0.00032917,2]
[401313004,1768127448367,-151.0,0.00032917,2]
[401313005,1768127448379,-151.0,0.00032917,2]
[401313006,1768127448389,-151.0,0.00032917,2]
[401313007,1768127448400,-151.0,0.00032917,2]
[401313008,1768127448415,-151.0,0.00032917,2]
[401313009,1768127448429,-151.0,0.00032917,2]
[401313010,1768127448440,-151.0,0.00032917,2]
[401313011,1768127448451,-151.0,0.00032917,2]
[401313012,1768127448463,-1112.0,0.00032999,2]
[401313013,1768127448475,-64142.26753541,0.00033,10]
[401313014,1768127448488,-151.0,0.00033,31]
[401313015,1768127448499,-151.0,0.00033,31]
[401313016,1768127448511,-151.0,0.00033,31]
[401313017,1768127448523,-1762.55867719,0.00033,4]
[401313018,1768127448534,-240.800368,0.00033,31]
[401313019,1768127448546,-198.80282405,0.00033,30]
[401313020,1768127448558,-156.82101,0.00033,31]
[401313021,1768127448570,-151.0,0.00033,31]
[401313022,1768127448581,-151.0,0.00033,31]
[401313023,1768127448593,-1371.756404,0.00033,31]
[401313024,1768127448605,-1371.756404,0.00033,31]
[401313025,1768127448616,-1371.756404,0.00033,31]
[401313026,1768127448627,-1371.756404,0.00033,31]
[401313027,1768127448638,-151.0,0.00033,31]
[401313028,1768127448649,-226.782828,0.00033,31]
[401313029,1768127448661,-151.0,0.00033,31]
[401313030,1768127448672,-174.0,0.00033068,58]
[401313031,1768127448683,-168.0,0.00033088,2]
[401313032,1768127448694,-2140.41,0.000331,30]
[401313033,1768127448705,-2870.56440789,0.0003312,2]
[401313034,1768127448716,-180.93086226,0.000332,117]
[401313035,1768127448727,-180.93086222,0.000332,117]
[401313036,1768127448738,-180.93086222,0.000332,117]
[401313037,1768127448749,-180.93086222,0.000332,117]
[401313038,1768127448761,-1045039.0068,0.0003322,30]
[401313039,1768127448772,-172.824008,0.0003322,31]
[401313040,1768127448783,-151.0,0.0003322,31]
[401313041,1768127448794,-151.0,0.0003322,31]
[401313042,1768127448805,-151.0,0.0003322,31]
[401313043,1768127448816,-151.0,0.0003322,31]
[401313044,1768127448826,-151.0,0.0003322,31]
[401313045,1768127448837,-151.0,0.0003322,31]
[401313046,1768127448848,-151.0,0.0003322,31]
[401313047,1768127448861,-151.0,0.0003322,31]
[401313048,1768127448872,-151.0,0.0003322,31]
[401313049,1768127448882,-151.0,0.0003322,31]
[401313050,1768127448894,-151.0,0.0003322,31]
[401313051,1768127448905,-151.0,0.0003322,31]
[401313052,1768127448917,-155.856993,0.0003322,31]
[401313053,1768127448928,-151.0,0.0003322,31]
[401313054,1768127448941,-151.0,0.0003322,31]
[401313055,1768127448952,-163.313773,0.0003322,31]
[401313056,1768127448964,-151.0,0.0003322,31]
[401313057,1768127448977,-151.292503,0.0003322,31]
[401313058,1768127448989,-264.224,0.0003322,31]
[401313059,1768127449001,-264.224,0.0003322,31]
[401313060,1768127449013,-264.224,0.0003322,31]
[401313061,1768127449024,-264.224,0.0003322,31]
[401313062,1768127449036,-151.0,0.0003322,31]
[401313063,1768127449048,-151.0,0.0003322,31]
[401313064,1768127449060,-151.0,0.0003322,31]
[401313065,1768127449071,-301.393574,0.0003322,31]
[401313066,1768127449082,-151.0,0.0003322,31]
[401313067,1768127449094,-170.54126,0.0003322,31]
[401313068,1768127449228,-151.0,0.0003322,31]
[401313069,1768127449241,-164.871038,0.0003322,31]
[401313070,1768127449251,-151.0,0.0003322,31]
[401313071,1768127449261,-161.662681,0.0003322,31]
[401313072,1768127449272,-151.0,0.0003322,31]
[401313073,1768127449283,-151.0,0.0003322,31]
[401313074,1768127449295,-151.0,0.0003322,31]
[401313075,1768127449306,-151.0,0.0003322,31]
[401313076,1768127449316,-173.073557,0.0003322,31]
[401313077,1768127449325,-151.0,0.0003322,31]
[401313078,1768127449336,-151.0,0.0003322,31]
[401313079,1768127449345,-173.073557,0.0003322,31]
[401313080,1768127449354,-151.0,0.0003322,31]
[401313081,1768127449364,-151.0,0.0003322,31]
[401313082,1768127449373,-173.073557,0.0003322,31]
[401313083,1768127449383,-173.073557,0.0003322,31]
[401313084,1768127449392,-151.0,0.0003322,31]
[401313085,1768127449402,-151.0,0.0003322,31]
[401313086,1768127449412,-151.0,0.0003322,31]
[401313087,1768127449422,-160.161373,0.0003322,31]
[401313088,1768127449432,-1371.756404,0.0003322,31]
[401313089,1768127449441,-1371.756404,0.0003322,31]
[401313090,1768127449451,-1371.756404,0.0003322,31]
[401313091,1768127449461,-1371.756404,0.0003322,31]
[401313092,1768127449471,-151.0,0.0003322,31]
[401313093,1768127449480,-151.0,0.0003322,31]
[401313094,1768127449489,-151.0,0.0003322,31]
[401313095,1768127449499,-151.0,0.0003322,31]
[401313096,1768127449509,-1355.369352,0.0003322,31]
[401313097,1768127449518,-1355.369352,0.0003322,31]
[401313098,1768127449528,-1355.369352,0.0003322,31]
[401313099,1768127449538,-1355.369352,0.0003322,31]
[401313100,1768127449548,-151.0,0.0003322,7]
[401313101,1768127449557,-151.0,0.0003322,7]
[401313102,1768127449567,-151.0,0.0003322,31]
[401313103,1768127449576,-151.0,0.0003322,31]
[401313104,1768127449585,-151.0,0.0003322,31]
[401313105,1768127449595,-151.0,0.0003322,31]
[401313106,1768127449605,-209.953007,0.0003322,31]
[401313107,1768127449614,-728.329358,0.0003322,31]
[401313108,1768127449623,-728.329358,0.0003322,31]
[401313109,1768127449632,-728.329358,0.0003322,31]
[401313110,1768127449642,-728.329358,0.0003322,31]
[401313111,1768127449652,-151.0,0.0003322,31]
[401313112,1768127449662,-151.0,0.0003322,31]
[401313113,1768127449672,-152.162088,0.0003322,2]
[401313114,1768127449682,-221.765393,0.0003322,31]
[401313115,1768127449691,-13367.01,0.000333,14]
[401313116,1768127449701,-1327.80902373,0.0003331,120]
[401313117,1768127449711,-168.0,0.00033324,2]
[401313118,1768127449720,-600.0,0.00033425,5]
[401313119,1768127449730,-168.0,0.00033434,2]
[401313120,1768127449739,-468.6,0.00033469,6]
[401313121,1768127449748,-168.0,0.00033505,2]
[401313122,1768127449757,-168.0,0.00033534,2]
[401313123,1768127449767,-869.0,0.00033648,7]
[401313124,1768127449776,-210.0,0.00033699,5]
[401313125,1768127449786,-163.38,0.000337,10]
[401313126,1768127449795,-868.0,0.00033749,2]
[401313127,1768127449804,-304.609324,0.0003394,2]
[401313128,1768127449814,-1218.43729602,0.0003394,2]
[401313129,1768127449822,-2741.48391604,0.0003394,2]
[401313130,1768127449830,-4873.74918407,0.0003394,2]
[401313131,1768127449838,-7615.23310011,0.0003394,2]
[401313132,1768127449848,-10965.93566416,0.0003394,2]
[401313133,1768127449858,-551.40017689,0.0003394,2]
[401313134,1768127449869,-2205.60070757,0.0003394,2]
[401313135,1768127449878,-4962.60159203,0.0003394,2]
[401313136,1768127449889,-8822.40283027,0.0003394,2]
[401313137,1768127449900,-999.0,0.00033972,120]
[401313138,1768127449910,-900.0,0.00033973,5]
[401313139,1768127449920,-2563.81814958,0.00033991,2]
[401313140,1768127449930,-168.0,0.00034053,7]
[401313141,1768127449940,-363.97,0.00034054,60]
[401313142,1768127449950,-868.0,0.00034095,2]
[401313143,1768127449960,-363.97,0.00034154,60]
[401313144,1768127449970,-800.0,0.00034213,2]
[401313145,1768127449981,-1002.20117456,0.00034244,15]
[401313146,1768127449992,-165.11729757,0.00034246,120]
[401313147,1768127450002,-363.97,0.00034254,60]
[401313148,1768127450011,-6222.815986,0.00034282,7]
[401313149,1768127450020,-434.81487819,0.00034282,7]
[401313150,1768127450030,-1556.89461711,0.00034282,7]
[401313151,1768127450039,-1739.25951275,0.00034282,7]
[401313152,1768127450048,-3913.33390368,0.00034282,7]
[401313153,1768127450057,-168.0,0.00034303,2]
[401313154,1768127450067,-2563.81814958,0.00034318,2]
[401313155,1768127450077,-363.985,0.00034354,60]
[401313156,1768127450088,-870.24597621,0.00034376,2]
[401313157,1768127450100,-168.0,0.00034388,2]
[401313158,1768127450109,-800.0,0.00034392,2]
[401313159,1768127450120,-300.0,0.00034411,28]
[401313160,1768127450131,-756.0,0.00034418,30]
[401313161,1768127450140,-720.0,0.00034418,30]
[401313162,1768127450150,-547.0,0.00034418,30]
[401313163,1768127450159,-1826.5121316,0.0003442,2]
[401313164,1768127450168,-12003.6403578,0.0003442,2]
[401313165,1768127450178,-629.16420479,0.00034432,2]
[401313166,1768127450187,-28231.1967283,0.00034441,2]
[401313167,1768127450196,-922.4621424,0.00034441,2]
[401313168,1768127450206,-1200.0,0.00034521,5]
[401313169,1768127450215,-270.0,0.00034521,5]
[401313170,1768127450227,-5000.0,0.00034536,3]
[401313171,1768127450236,-153.90472729,0.00034599,16]
[401313172,1768127450246,-250.0,0.00034599,16]
[401313173,1768127450256,-250.0,0.00034599,16]
[401313174,1768127450265,-250.0,0.00034599,16]
[401313175,1768127450275,-151.0,0.00034599,16]
[401313176,1768127450284,-271.40103972,0.00034599,16]
[401313177,1768127450293,-151.0,0.00034599,16]
[401313178,1768127450302,-250.0,0.00034599,16]
[401313179,1768127450311,-151.0,0.00034599,16]
[401313180,1768127450321,-250.0,0.00034599,16]
[401313181,1768127450330,-250.15738416,0.00034599,16]
[401313182,1768127450339,-445.202766,0.00034599,16]
[401313183,1768127450348,-461.67526834,0.00034599,16]
[401313184,1768127450358,-2150.738,0.00034599,16]
[401313185,1768127450367,-478.75725327,0.00034599,16]
[401313186,1768127450376,-151.0,0.00034599,16]
[401313187,1768127450385,-496.47127164,0.00034599,16]
[401313188,1768127450394,-151.0,0.00034599,16]
[401313189,1768127450404,-514.84070869,0.00034599,16]
[401313190,1768127450413,-533.88981491,0.00034599,16]
[401313191,1768127450422,-162.380719,0.00034599,16]
[401313192,1768127450431,-562.55157284,0.00034599,16]
[401313193,1768127450439,-223.13477496,0.00034599,16]
[401313194,1768127450448,-151.0,0.00034599,16]
[401313195,1768127450457,-151.0,0.00034599,16]
[401313196,1768127450466,-151.0,0.00034599,16]
[401313197,1768127450475,-151.0,0.00034599,16]
[401313198,1768127450484,-151.0,0.00034599,16]
[401313199,1768127450493,-151.0,0.00034599,16]
[401313200,1768127450502,-151.0,0.00034599,16]
[401313201,1768127450511,-151.0,0.00034599,16]
[401313202,1768127450520,-151.0,0.00034599,16]
[401313203,1768127450529,-151.0,0.00034599,16]
[401313204,1768127450539,-151.0,0.00034599,16]
[401313205,1768127450548,-1095.40809829,0.00034599,16]
[401313206,1768127450557,-151.0,0.00034599,16]
[401313207,1768127450567,-151.0,0.00034599,16]
[401313208,1768127450577,-151.0,0.00034599,16]
[401313209,1768127450586,-151.0,0.00034599,16]
[401313210,1768127450596,-151.0,0.00034599,16]
[401313211,1768127450605,-151.0,0.00034599,16]
[401313212,1768127450615,-154.07167593,0.00034599,16]
[401313213,1768127450624,-800.0,0.00034606,2]
[401313214,1768127450633,-168.0,0.00034633,7]
[401313215,1768127450643,-445498.48061505,0.0003465,2]
[401313216,1768127450738,-3610.35764539,0.0003465,2]
[401313217,1768127450750,-4905.58364292,0.0003465,2]
[401313218,1768127450761,-1646.68178699,0.0003465,2]
[401313219,1768127450772,-18741.81011789,0.0003465,2]
[401313220,1768127450830,-500.0,0.00012318,2]
[401313221,1768127450839,-2.30503951,0.00032877,10]
[401313222,1768127451339,-1002.17453697,9.599e-05,2]
[401313223,1768127451350,-1466.7893271,9.599e-05,2]
[401313224,1768127520775,151.65,8.121e-05,2]
[401313225,1768127521168,170.6,8.411e-05,2]
[401313227,1768127603104,151.0,0.00030137,120]
[401313228,1768127821414,151.0,0.00030137,120]
[401313229,1768127879626,604.6,5.974e-05,2]
[401313230,1768127879895,604.6,5.974e-05,2]
[401313231,1768127989677,300.0,8.31e-05,2]
[401313232,1768128004097,348.73,5e-05,2]
[401313233,1768128004666,348.73,5.5e-05,2]
[401313234,1768128005255,348.73,6e-05,2]
[401313235,1768128005728,348.73,6.5e-05,2]
[401313236,1768128006225,348.73,7.1e-05,2]
[401313237,1768128006756,348.73,7.6e-05,2]
[401313238,1768128007378,348.73,8.1e-05,2]
[401313239,1768128008144,348.73,8.6e-05,2]
[401313240,1768128035667,348.71,5e-05,2]
[401313241,1768128620731,1851.3287512,8.325e-05,2]
[401313252,1768128631688,-348.73,9.1e-05,2]
[401313253,1768128631697,-63.98247724,9.1e-05,2]
[401313254,1768128631712,-483.01752276,9.1e-05,2]
[401313255,1768128631721,-430.55139581,9.113e-05,2]
[401313256,1768128631731,-215.965,9.125e-05,2]
[401313257,1768128631742,-300.0,9.208e-05,2]
[401313258,1768128631751,-1200.0,9.208e-05,2]
[401313259,1768128631760,-152981.01447003,9.209e-05,2]
[401313270,1768128637727,-500.0,9.208e-05,2]
[401313272,1768128637736,-267.47051768,9.208e-05,2]
[401313274,1768128637745,-500.0,9.208e-05,2]
[401313276,1768128637755,-500.0,9.208e-05,2]
[401313278,1768128637764,-500.0,9.208e-05,2]
[401313281,1768128637773,-500.0,9.208e-05,2]
[401313282,1768128637783,-500.0,9.208e-05,2]
[401313284,1768128637792,-500.0,9.208e-05,2]
[401313286,1768128637802,-500.0,9.208e-05,2]
[401313287,1768128637811,-500.0,9.208e-05,2]
[401313288,1768128637820,-500.0,9.208e-05,2]
[401313289,1768128637829,-500.0,9.208e-05,2]
[401313290,1768128637838,-500.0,9.208e-05,2]
[401313291,1768128637848,-500.0,9.208e-05,2]
[401313292,1768128637858,-230.99558995,9.208e-05,2]
[401313293,1768128637867,-500.0,9.208e-05,2]
[401313294,1768128637876,-363.83984986,9.208e-05,2]
[401313295,1768128637888,-136.16015014,9.208e-05,2]
[401313296,1768128637898,-500.0,9.208e-05,2]
[401313297,1768128638011,-187.98945259,9.208e-05,2]
[401313298,1768128638030,-500.0,9.208e-05,2]
[401313299,1768128638041,-500.0,9.208e-05,2]
[401313300,1768128638051,-500.0,9.208e-05,2]
[401313301,1768128638061,-500.0,9.208e-05,2]
[401313302,1768128638070,-271.16409229,9.208e-05,2]
[401313303,1768128638079,-430.55139581,9.209e-05,2]
[401313304,1768128638089,-847018.98552997,9.209e-05,2]
[401313305,1768128638099,-300.0,9.308e-05,2]
[401313306,1768128638108,-50000.0,9.309e-05,2]
[401313307,1768128638118,-228.80134121,9.31e-05,2]
[401313308,1768128638128,-348.73,9.6e-05,2]
[401313309,1768128638137,-2870.56440792,9.6e-05,2]
[401313310,1768128638147,-300.0,9.79e-05,2]
[401313311,1768128638156,-300.0,9.79e-05,2]
[401313312,1768128638167,-300.0,9.79e-05,2]
[401313313,1768128638176,-300.0,9.79e-05,2]
[401313314,1768128638186,-300.0,9.79e-05,2]
[401313315,1768128638196,-300.0,9.79e-05,2]
[401313316,1768128638207,-300.0,9.79e-05,2]
[401313317,1768128638217,-300.0,9.79e-05,2]
[401313318,1768128638228,-300.0,9.79e-05,2]
[401313319,1768128638238,-300.0,9.79e-05,2]
[401313320,1768128638248,-300.0,9.79e-05,2]
[401313321,1768128638259,-300.0,9.79e-05,2]
[401313322,1768128638269,-300.0,9.79e-05,2]
[401313323,1768128638279,-300.0,9.79e-05,2]
[401313324,1768128638288,-300.0,9.79e-05,2]
[401313325,1768128638298,-500.0,9.79e-05,2]
[401313326,1768128638307,-600.0,9.985e-05,2]
[401313327,1768128638316,-333.99,0.0001,2]
[401313328,1768128638326,-727.78714077,0.0001,2]
[401313329,1768128638335,-500.0,0.00010064,2]
[401313330,1768128638344,-348.73,0.000101,2]
[401313331,1768128638354,-420.0,0.00010129,2]
[401313332,1768128638363,-333.99,0.000102,2]
[401313333,1768128638372,-500.0,0.00010338,2]
[401313334,1768128638382,-333.99,0.000104,2]
[401313335,1768128638392,-333.99,0.000106,2]
[401313336,1768128638401,-348.73,0.000106,2]
[401313337,1768128638411,-500.0,0.00010612,2]
[401313338,1768128638421,-333.99,0.000108,2]
[401313339,1768128638430,-500.0,0.00010886,2]
[401313340,1768128638440,-999.0,0.00010959,2]
[401313341,1768128638453,-720.0,0.00010983,2]
[401313342,1768128638463,-333.99,0.00011,2]
[401313343,1768128638472,-1000.0,0.00011,2]
[401313344,1768128638482,-500.0,0.00011,2]
[401313345,1768128638492,-500.0,0.00011,2]
[401313346,1768128638501,-500.0,0.00011,2]
[401313347,1768128638511,-500.0,0.00011,2]
[401313348,1768128638520,-176.23516734,0.00011,2]
[401313349,1768128638529,-500.0,0.00011,2]
[401313350,1768128638539,-500.0,0.00011,2]
[401313351,1768128638548,-500.0,0.00011,2]
[401313352,1768128638557,-154.30171575,0.00011,2]
[401313353,1768128638567,-500.0,0.00011,2]
[401313354,1768128638577,-500.0,0.00011,2]
[401313355,1768128638587,-171.65605742,0.00011,2]
[401313356,1768128638596,-500.0,0.00011,2]
[401313357,1768128638605,-283.8218406,0.00011,2]
[401313358,1768128638616,-190.86169873,0.00011,2]
[401313359,1768128638626,-171.51692933,0.00011,2]
[401313360,1768128638636,-150629.941391,0.00011,2]
[401313361,1768128638645,-2656.0,0.00011,2]
[401313362,1768128638656,-500.0,0.00011,2]
[401313363,1768128638666,-500.0,0.00011137,2]
[401313364,1768128638676,-500.0,0.00011137,2]
[401313365,1768128638685,-500.0,0.00011137,2]
[401313366,1768128638695,-500.0,0.00011137,2]
[401313367,1768128638705,-500.0,0.00011137,2]
[401313368,1768128638715,-500.0,0.00011137,2]
[401313369,1768128638725,-503.05659276,0.00011137,2]
[401313370,1768128638735,-201.95802809,0.00011137,2]
[401313371,1768128638745,-500.0,0.00011137,2]
[401313372,1768128638755,-598.52490689,0.00011137,2]
[401313373,1768128638764,-500.0,0.00011137,2]
[401313374,1768128638774,-2656.0,0.00011137,2]
[401313375,1768128638785,-500.0,0.00011137,2]
[401313376,1768128638796,-587.0,0.00011142,2]
[401313377,1768128638805,-500.0,0.0001116,2]
[401313378,1768128638814,-348.73,0.000112,2]
[401313379,1768128638825,-508.05,0.00011209,2]
[401313380,1768128638835,-330.49,0.00011209,2]
[401313381,1768128638845,-330.49,0.00011209,2]
[401313382,1768128638857,-330.49,0.00011209,2]
[401313383,1768128638869,-330.49,0.00011209,2]
[401313384,1768128638881,-330.49,0.00011209,2]
[401313385,1768128638891,-330.49,0.00011209,2]
[401313386,1768128638902,-330.45,0.00011209,2]
[401313387,1768128638913,-223.56062369,0.00011274,2]
[401313388,1768128638923,-500.0,0.00011274,2]
[401313389,1768128638937,-500.0,0.00011274,2]
[401313390,1768128638947,-179.07075974,0.00011274,2]
[401313391,1768128638959,-500.0,0.00011274,2]
[401313392,1768128638970,-500.0,0.00011274,2]
[401313393,1768128638980,-500.0,0.00011274,2]
[401313394,1768128638990,-500.0,0.00011274,2]
[401313395,1768128639002,-500.0,0.00011274,2]
[401313396,1768128639012,-163.14839871,0.00011274,2]
[401313397,1768128639022,-2656.0,0.00011274,2]
[401313398,1768128639032,-500.0,0.00011274,2]
[401313399,1768128639042,-300.0,0.00011411,2]
[401313400,1768128639051,-500.0,0.00011411,2]
[401313401,1768128639061,-500.0,0.00011411,2]
[401313402,1768128639070,-500.0,0.00011411,2]
[401313403,1768128639080,-250.0,0.00011411,2]
[401313404,1768128639089,-500.0,0.00011411,2]
[401313405,1768128639100,-500.0,0.00011411,2]
[401313406,1768128639109,-2656.0,0.00011411,2]
[401313407,1768128639119,-500.0,0.00011411,2]
[401313408,1768128639128,-500.0,0.00011434,2]
[401313409,1768128639138,-263.97622948,0.00011548,2]
[401313410,1768128639148,-487.28484085,0.00011548,2]
[401313411,1768128639159,-500.00000003,0.00011548,2]
[401313412,1768128639170,-500.0,0.00011548,2]
[401313413,1768128639179,-500.0,0.00011548,2]
[401313414,1768128639189,-264.95729538,0.00011548,2]
[401313415,1768128639198,-337.35985221,0.00011548,2]
[401313416,1768128639209,-2656.0,0.00011548,2]
[401313417,1768128639218,-500.0,0.00011548,2]
[401313418,1768128639227,-500.0,0.00011685,2]
[401313419,1768128639237,-500.0,0.00011685,2]
[401313420,1768128639247,-2656.0,0.00011685,2]
[401313421,1768128639256,-500.0,0.00011685,2]
[401313422,1768128639266,-348.73,0.000117,2]
[401313423,1768128639275,-500.0,0.00011708,2]
[401313424,1768128639285,-500.0,0.00011822,2]
[401313425,1768128639294,-500.0,0.00011822,2]
[401313426,1768128639304,-2656.0,0.00011822,2]
[401313427,1768128639313,-500.0,0.00011822,2]
[401313428,1768128639322,-500.0,0.00011959,2]
[401313429,1768128639332,-500.0,0.00011959,2]
[401313430,1768128639341,-2656.0,0.00011959,2]
[401313431,1768128639351,-500.0,0.00011959,2]
[401313432,1768128639360,-500.0,0.00011982,2]
[401313433,1768128639370,-1000.0,0.00012,2]
[401313434,1768128639379,-250.0,0.00012024,2]
[401313435,1768128639389,-864.0,0.00012082,2]
[401313436,1768128639399,-500.0,0.00012096,2]
[401313437,1768128639409,-500.0,0.00012096,2]
[401313438,1768128639418,-2656.0,0.00012096,2]
[401313439,1768128639428,-500.0,0.00012096,2]
[401313440,1768128639437,-348.73,0.000122,2]
[401313441,1768128639447,-500.0,0.00012233,2]
[401313442,1768128639458,-500.0,0.00012233,2]
[401313443,1768128639467,-2656.0,0.00012233,2]
[401313444,1768128639476,-500.0,0.00012233,2]
[401313445,1768128639486,-500.0,0.00012256,2]
[401313446,1768128639495,-823.0,0.00012256,2]
[401313447,1768128639505,-1432.63,0.00012329,2]
[401313448,1768128639514,-1193.86,0.00012329,2]
[401313449,1768128639523,-994.89,0.00012329,2]
[401313451,1768128639533,-829.07,0.00012329,2]
[401313452,1768128639542,-690.89,0.00012329,2]
[401313453,1768128639551,-575.74,0.00012329,2]
[401313455,1768128639560,-479.79,0.00012329,2]
[401313457,1768128639569,-399.82,0.00012329,2]
[401313459,1768128639579,-333.19,0.00012329,2]
[401313460,1768128639589,-277.65,0.00012329,2]
[401313461,1768128639598,-231.38,0.00012329,2]
[401313462,1768128639607,-192.82,0.00012329,2]
[401313463,1768128639617,-160.68,0.00012329,2]